Workbook

Sheet Topics
A1: 1 | B1: Probability
A2: 2 | B2: Experiment & Experimental Outcomes
A3: 3 | B3: Sample Point (Experimental Outcome)
A4: 4 | B4: Sample Space
A5: 5 | B5: Multi-step Experiment
A6: 6 | B6: Tree Diagram
A7: 7 | B7: Counting Rule for Multi-step Experiment
A8: 8 | B8: Combinations
A9: 9 | B9: Permutations
A10: 10 | B10: Methods of Assigning Probabilities
A11: a | B11: Classical Method
A12: b | B12: Relative Frequency Method & Law of Large Numbers
A13: c | B13: Subjective Method
A14: 11 | B14: Requirements for Assigning Probabilities
A15: 12 | B15: Event
A16: 13 | B16: Probability of an Event
A17: 14 | B17: P(S) =1
A18: 15 | B18: Calculating Probability for Classical Method
A19: 16 | B19: Venn Diagram
A20: 17 | B20: Complement Rule
A21: 18 | B21: Mutually Exclusive
A22: 19 | B22: Union
A23: 20 | B23: Intersection
A24: 21 | B24: Addition Law for Probability & Addition Law for Probability for Mutually Exclusive
A25: 22 | B25: Conditional Probability & HYPGOEMDIST and HYPGEOM.DIST functions
A26: 23 | B26: Joint Probability
A27: 24 | B27: Joint Probability Table
A28: 25 | B28: Independence & Dependence
A29: 26 | B29: Multiplication Law for Probability
A30: 27 | B30: Multiplication Law for Probability for Independence
A31: 28 | B31: Calculating Conditional Probability
A32: 29 | B32: Cross Tabulation from Raw Data and Probability Pivot Table
B37: Probability Concepts in this chapter: Probability, Experiment & Experimental Outcomes, Sample Point (Experimental Outcome), Sample Space, Multi-step Experiment, Tree Diagram, Counting Rule for Multi-step Experiment, Combinations, Permutations, Methods of Assigning Probabilities, Classical Method, Relative Frequency Method & Law of Large Numbers, Subjective Method, Requirements for Assigning Probabilities, Event, Probability of an Event, P(S) =1, Calculating Probability for Classical Method, Venn Diagram, Complement Rule, Mutually Exclusive, Union, Intersection, Addition Law for Probability & Addition Law for Probability for Mutually Exclusive, Conditional Probability, Joint Probability, Joint Probability Table, Independence & Dependence, Multiplication Law for Probability, Multiplication Law for Probability for Independence, Calculating Conditional Probability, Cross Tabulation from Raw Data and Probability Pivot Table

Sheet SS
A1: Experiment of tossing coin three times
A2: Steps in Experiment | B2: 3
A3: Outcomes Step 1 | B3: 2
A4: Outcomes Step 2 | B4: 2
A5: Outcomes Step 3 | B5: 2 | F5: Success =
A6: Total Experimental Outcomes | C6: (Sample Points) | F6: Heads
A7: P(for each) = | C7: Classical | F7: ="Notation for "&F6&" is "&LEFT(F6,1) -> Notation for Heads is H
F8: =LEFT(F6,1) -> H
A9: Number of Sample Points (# of Unique Experimental Outcomes) | B9: Toss 1 | C9: Toss 2 | D9: Toss 3 | E9: Sample Space = List of Sample Points or Experimental Outcomes | F9: Probability of Sample Point (classical = each is equally likely) | H9: Number of Heads | J9: Event = Number of Heads (Category) | K9: Frequency | L9: Formula | M9: Relative Frequency
A10: 1 | B10: H | C10: H | D10: H | J10: 3
A11: 2 | B11: T | C11: H | D11: H | J11: 2
A12: 3 | B12: H | C12: T | D12: H | J12: 1
A13: 4 | B13: H | C13: H | D13: T | J13: 0
A14: 5 | B14: T | C14: T | D14: H
A15: 6 | B15: T | C15: H | D15: T | J15: Event | K15: Probability
A16: 7 | B16: H | C16: T | D16: T | J16: ="P(Get "&J10&" Heads in 3 Tosses )" -> P(Get 3 Heads in 3 Tosses ) | M16: Requirement 1 = Each is between 0 and 1 (inclusive)
A17: 8 | B17: T | C17: T | D17: T | J17: ="P(Get "&J11&" Heads in 3 Tosses )" -> P(Get 2 Heads in 3 Tosses )
F18: =SUM(F10:F17) -> 0 | J18: ="P(Get "&J12&" Heads in 3 Tosses )" -> P(Get 1 Heads in 3 Tosses )
A19: Tree Diagram | J19: ="P(Get "&J13&" Heads in 3 Tosses )" -> P(Get 0 Heads in 3 Tosses )
B20: Step 1 | C20: Step 2 | D20: Step 3 | E20: List of Sample Points (Experimental Outcomes) | J20: Probability Requirement 2 Sum of all probabilities in sample space = 1
D22: Head | E22: (H, H, H) | J22: P(At least 1 head in 3 Tosses)
C23: Head | J23: P(At least 1 head in 3 Tosses)
D24: Tail | E24: (H, H, T)
B25: Head
D26: Head | E26: (H, T, H)
C27: Tail
D28: Tail | E28: (H, T, T)
D30: Head | E30: (T, H, H)
C31: Head
D32: Tail | E32: (T, H, T)
B33: Tail
D34: Head | E34: (T, T, H)
C35: Tail
D36: Tail | E36: (T, T, T)

Sheet SS(an)
A1: Experiment of tossing coin three times
A2: Steps in Experiment | B2: 3
A3: Outcomes Step 1 | B3: 2
A4: Outcomes Step 2 | B4: 2
A5: Outcomes Step 3 | B5: 2 | F5: Success =
A6: Total Experimental Outcomes | B6: =PRODUCT(B3:B5) -> 8 | C6: (Sample Points) | F6: Heads
A7: P(for each) = | B7: =1/B6 -> 0.125 | C7: Classical | F7: ="Notation for "&F6&" is "&LEFT(F6,1) -> Notation for Heads is H
F8: =LEFT(F6,1) -> H
A9: Number of Sample Points (# of Unique Experimental Outcomes) | B9: Toss 1 | C9: Toss 2 | D9: Toss 3 | E9: Sample Space = List of Sample Points or Experimental Outcomes | F9: Probability of Sample Point (classical = each is equally likely) | H9: Number of Heads | J9: Event = Number of Heads (Category) | K9: Frequency | L9: Formula | M9: Relative Frequency
A10: 1 | B10: H | C10: H | D10: H | E10: ="("&B10&", "&C10&", "&D10&")" -> (H, H, H) | F10: =1/$B$6 -> 0.125 | H10: =COUNTIF(B10:D10,$F$8) -> 3 | J10: 3 | K10: =COUNTIF($H$10:$H$17,J10) -> 1 | L10: =IF(K10="",""," "&K10&"/"&$K$14&" =") -> 1/8 = | M10: =K10/$K$14 -> 0.125 | N10: =SUM(F10) -> 0.125
A11: 2 | B11: T | C11: H | D11: H | E11: ="("&B11&", "&C11&", "&D11&")" -> (T, H, H) | F11: 0.125 | H11: 2 | J11: 2 | K11: =COUNTIF($H$10:$H$17,J11) -> 3 | L11: =IF(K11="",""," "&K11&"/"&$K$14&" =") -> 3/8 = | M11: =K11/$K$14 -> 0.375 | N11: =SUM(F11:F13) -> 0.375
A12: 3 | B12: H | C12: T | D12: H | E12: (H, T, H) | F12: 0.125 | H12: 2 | J12: 1 | K12: =COUNTIF($H$10:$H$17,J12) -> 3 | L12: =IF(K12="",""," "&K12&"/"&$K$14&" =") -> 3/8 = | M12: =K12/$K$14 -> 0.375
A13: 4 | B13: H | C13: H | D13: T | E13: (H, H, T) | F13: 0.125 | H13: 2 | J13: 0 | K13: =COUNTIF($H$10:$H$17,J13) -> 1 | L13: =IF(K13="",""," "&K13&"/"&$K$14&" =") -> 1/8 = | M13: =K13/$K$14 -> 0.125
A14: 5 | B14: T | C14: T | D14: H | E14: (T, T, H) | F14: 0.125 | H14: 1 | K14: =SUM(K10:K13) -> 8
A15: 6 | B15: T | C15: H | D15: T | E15: (T, H, T) | F15: 0.125 | H15: 1 | J15: Event | K15: Probability
A16: 7 | B16: H | C16: T | D16: T | E16: (H, T, T) | F16: 0.125 | H16: 1 | J16: ="P(Get "&J10&" Heads in 3 Tosses )" -> P(Get 3 Heads in 3 Tosses ) | K16: =M10 -> 0.125 | M16: Requirement 1 = Each is between 0 and 1 (inclusive)
A17: 8 | B17: T | C17: T | D17: T | E17: (T, T, T) | F17: 0.125 | H17: 0 | J17: ="P(Get "&J11&" Heads in 3 Tosses )" -> P(Get 2 Heads in 3 Tosses ) | K17: =M11 -> 0.375
F18: =SUM(F10:F17) -> 1 | J18: ="P(Get "&J12&" Heads in 3 Tosses )" -> P(Get 1 Heads in 3 Tosses ) | K18: =M12 -> 0.375
A19: Tree Diagram | J19: ="P(Get "&J13&" Heads in 3 Tosses )" -> P(Get 0 Heads in 3 Tosses ) | K19: =M13 -> 0.125
B20: Step 1 | C20: Step 2 | D20: Step 3 | E20: List of Sample Points (Experimental Outcomes) | J20: Probability Requirement 2 Sum of all probabilities in sample space = 1 | K20: =SUM(K16:K19) -> 1
D22: Head | E22: (H, H, H) | J22: P(At least 1 head in 3 Tosses) | K22: =SUM(K16:K18) -> 0.875
C23: Head | J23: P(At least 1 head in 3 Tosses) | K23: =1-K19 -> 0.875
D24: Tail | E24: (H, H, T)
B25: Head
D26: Head | E26: (H, T, H)
C27: Tail
D28: Tail | E28: (H, T, T)
D30: Head | E30: (T, H, H)
C31: Head
D32: Tail | E32: (T, H, T)
B33: Tail
D34: Head | E34: (T, T, H)
C35: Tail
D36: Tail | E36: (T, T, T)

Sheet Dice
A1: Experiment = Roll die twice
A2: # of Steps or Trials =
A3: = Roll dice once with two die = | B3: 2
A4: Possible outcomes from one die | B4: 6
A5: Possible outcomes from two dice | B5: =IF(B4="","",B4&"*"&B4&" = "&B4*B4) -> 6*6 = 36 | C5: =B4*B4 -> 36
C7: List Sample Space
E8: Die 2
E9: 1 | F9: 2 | G9: 3 | H9: 4 | I9: 5 | J9: 6
C10: Die 1 | D10: 1
D11: 2
D12: 3
D13: 4
D14: 5
D15: 6
C17: Sum of each possibility
E18: Die 2
E19: 1 | F19: 2 | G19: 3 | H19: 4 | I19: 5 | J19: 6
C20: Die 1 | D20: 1
D21: 2
D22: 3
D23: 4
D24: 5
D25: 6

Sheet Dice(an)
A1: Experiment = Roll die twice
A2: # of Steps or Trials =
A3: = Roll dice once with two die = | B3: 2
A4: Possible outcomes from one die | B4: 6
A5: Possible outcomes from two dice | B5: =IF(B4="","",B4&"*"&B4&" = "&B4*B4) -> 6*6 = 36 | C5: =B4*B4 -> 36
C7: List Sample Space
E8: Die 2
E9: 1 | F9: 2 | G9: 3 | H9: 4 | I9: 5 | J9: 6
C10: Die 1 | D10: 1 | E10: ="("&$D10&", "&E$9&")" -> (1, 1) | F10: (1, 2) | G10: (1, 3) | H10: (1, 4) | I10: (1, 5) | J10: (1, 6)
D11: 2 | E11: (2, 1) | F11: (2, 2) | G11: (2, 3) | H11: (2, 4) | I11: (2, 5) | J11: (2, 6)
D12: 3 | E12: (3, 1) | F12: (3, 2) | G12: (3, 3) | H12: (3, 4) | I12: (3, 5) | J12: (3, 6)
D13: 4 | E13: (4, 1) | F13: (4, 2) | G13: (4, 3) | H13: (4, 4) | I13: (4, 5) | J13: (4, 6)
D14: 5 | E14: (5, 1) | F14: (5, 2) | G14: (5, 3) | H14: (5, 4) | I14: (5, 5) | J14: (5, 6)
D15: 6 | E15: (6, 1) | F15: (6, 2) | G15: (6, 3) | H15: (6, 4) | I15: (6, 5) | J15: (6, 6)
C17: Sum of each possibility
E18: Die 2
E19: 1 | F19: 2 | G19: 3 | H19: 4 | I19: 5 | J19: 6
C20: Die 1 | D20: 1 | E20: =E$19+$D20 -> 2 | F20: 3 | G20: 4 | H20: 5 | I20: 6 | J20: 7
D21: 2 | E21: 3 | F21: 4 | G21: 5 | H21: 6 | I21: 7 | J21: 8
D22: 3 | E22: 4 | F22: 5 | G22: 6 | H22: 7 | I22: 8 | J22: 9
D23: 4 | E23: 5 | F23: 6 | G23: 7 | H23: 8 | I23: 9 | J23: 10
D24: 5 | E24: 6 | F24: 7 | G24: 8 | H24: 9 | I24: 10 | J24: 11
D25: 6 | E25: 7 | F25: 8 | G25: 9 | H25: 10 | I25: 11 | J25: 12

Sheet C
A1: Use FACT function for factorials
A2: 5! = 1*2*3*4*5
A3: 5
A4: 5
A6: Counting Rule for Multi-Step Experiment
A7: Number of steps = k | B7: 3
A8: Outcomes in 1st step = n1 | B8: 2
A9: Outcomes in 1st step = n2 | B9: 2
A10: Outcomes in 1st step = n3 | B10: 2
A11: Total Number of Sample Points (Experimental Outcomes) = n1 * n2 * … *nk
A14: Use COMBIN function for combinations
A15: Palyers | B15: 12
A16: Team size | B16: 5
A17: Total Combinations | C17: 2,1
C18: 1,2
A19: Use PERMUT function for combinations
A20: Palyers | B20: 12
A21: Team size | B21: 5
A22: Total Combinations | C22: 2,1
C23: 1,2

Sheet C(an)
A1: Use FACT function for factorials
A2: 5! = 1*2*3*4*5
A3: 5 | B3: =1*2*3*4*5 -> 120
A4: 5 | B4: =FACT(A4) -> 120
A6: Counting Rule for Multi-Step Experiment
A7: Number of steps = k | B7: 3
A8: Outcomes in 1st step = n1 | B8: 2
A9: Outcomes in 1st step = n2 | B9: 2
A10: Outcomes in 1st step = n3 | B10: 2
A11: Total Number of Sample Points (Experimental Outcomes) = n1 * n2 * … *nk | B11: =PRODUCT(B8:B10) -> 8
A14: Use COMBIN function for combinations
A15: Palyers | B15: 12
A16: Team size | B16: 5
A17: Total Combinations | B17: =COMBIN(B15,B16) -> 792 | C17: 2,1
C18: 1,2
A19: Use PERMUT function for combinations
A20: Palyers | B20: 12
A21: Team size | B21: 5
A22: Total Combinations | B22: =PERMUT(B20,B21) -> 95040 | C22: 2,1
C23: 1,2

Sheet C(1)
A1: ="Boomerang "&B1 -> Boomerang B | B1: B
A2: ="Boomerang "&B2 -> Boomerang C | B2: C
A3: ="Boomerang "&B3 -> Boomerang S | B3: S
A4: ="Boomerang "&B4 -> Boomerang D | B4: D
A6: We would like to find all possible combinations of sample size 2, from population size 4 (Used later to help prove the Central Limit Theorem)
A8: N = pop size = | B8: 4
A9: n = sample size = | B9: 2
A10: All combinations of sample size 2 =
A12: List all Experimental Outcomes:
A19: Find All Permutations
A21: N = | B21: 4
A22: n = | B22: 2
A23: All combinations of sample size 2 =
A25: List all Experimental Outcomes:

Sheet C(1an)
A1: ="Boomerang "&B1 -> Boomerang B | B1: B
A2: ="Boomerang "&B2 -> Boomerang C | B2: C
A3: ="Boomerang "&B3 -> Boomerang S | B3: S
A4: ="Boomerang "&B4 -> Boomerang D | B4: D
A6: We would like to find all possible combinations of sample size 2, from population size 4 (Used later to help prove the Central Limit Theorem)
A8: N = pop size = | B8: 4
A9: n = sample size = | B9: 2
A10: All combinations of sample size 2 = | B10: =COMBIN(B8,B9) -> 6
A12: List all Experimental Outcomes: | B12: B | C12: C
B13: B | C13: S
B14: B | C14: D
B15: C | C15: S
B16: C | C16: D
B17: S | C17: D
A19: Find All Permutations
A21: N = | B21: 4
A22: n = | B22: 2
A23: All combinations of sample size 2 = | B23: =PERMUT(B21,B22) -> 12
A25: List all Experimental Outcomes: | B25: B | C25: C
B26: B | C26: S
B27: B | C27: D
B28: C | C28: B
B29: C | C29: S
B30: C | C30: D
B31: S | C31: B
B32: S | C32: C
B33: S | C33: D
B34: D | C34: B
B35: D | C35: C
B36: D | C36: S

Sheet Comp
A1: P(Get 2 heads in 3 Flips) = | B1: 0.375 | D1: =A1&" "&B1 -> P(Get 2 heads in 3 Flips) = 0.375
A2: P(Not get 2 heads in 3 Flips) = | D2: =A4&" 1 - "&B1 -> P(Get 0, 1, or 3 Heads on 3 flips) = 1 - 0.375
A3: or
A4: P(Get 0, 1, or 3 Heads on 3 flips) =

Sheet Comp(an)
A1: P(Get 2 heads in 3 Flips) = | B1: 0.375 | D1: =A1&" "&B1 -> P(Get 2 heads in 3 Flips) = 0.375
A2: P(Not get 2 heads in 3 Flips) = | D2: =A4&" 1 - "&B1 -> P(Get 0, 1, or 3 Heads on 3 flips) = 1 - 0.375
A3: or
A4: P(Get 0, 1, or 3 Heads on 3 flips) = | B4: =1-B1 -> 0.625

Sheet A
A1: Adding Law For Probability = P(A or B) = P(A) + P(B) - P(A and B) If events are mutaully exclusive, then: = P(A or B) = P(A) + P(B)
A2: Note: Add = OR = U = Union = +
A4: Arrival | B4: Event | C4: Frequency | D4: P(X) | E4: P(X)
A5: Early | B5: =LEFT(A5,1) -> E | C5: 100 | D5: ="P("&B5&")" -> P(E)
A6: On Time | B6: =LEFT(A6,1) -> O | C6: 800 | D6: ="P("&B6&")" -> P(O)
A7: Late | B7: =LEFT(A7,1) -> L | C7: 75 | D7: ="P("&B7&")" -> P(L)
A8: Canceled | B8: =LEFT(A8,1) -> C | C8: 25 | D8: ="P("&B8&")" -> P(C)
A12: =CONCATENATE("P(",A5," or ",A6,")") -> P(Early or On Time) | B12: = | C12: =CONCATENATE("P(",B5," or ",B6,")") -> P(E or O) | D12: = | E12: =E5 -> 0 | F12: + | G12: =E6 -> 0 | H12: =
A13: =CONCATENATE("P(Not ",A8,")") -> P(Not Canceled) | B13: = | C13: =CONCATENATE("P(Not ",B8,")") -> P(Not C) | D13: = | E13: =+E9 -> 0 | F13: - | G13: =E8 -> 0 | H13: =
A14: =CONCATENATE("P(",A5," or ",A7,")") -> P(Early or Late) | B14: = | C14: =CONCATENATE("P(",B5," or ",B7,")") -> P(E or L) | D14: = | E14: =E5 -> 0 | F14: + | G14: =E7 -> 0 | H14: =
A17: Travel survey of people who visit Seattle
A18: Visit Space Needle | B18: SN | C18: ="P("&B18&")" -> P(SN) | D18: 0.45
A19: Visit Pike's Place Market | B19: PP | C19: ="P("&B19&")" -> P(PP) | D19: 0.65
A20: Visit Both | B20: SN & PP | C20: ="P("&B20&")" -> P(SN & PP) | D20: 0.25
A21: ="P("&B18&" OR "&B19&") "&CHAR(10)&"= "&C18&" + "&C19&" - "&C20 -> P(SN OR PP) = P(SN) + P(PP) - P(SN & PP)
A22: or
A23: P(visit at least 1)

Sheet A(an)
A1: Adding Law For Probability = P(A or B) = P(A) + P(B) - P(A and B) If events are mutaully exclusive, then: = P(A or B) = P(A) + P(B)
A2: Note: Add = OR = U = Union = +
A4: Arrival | B4: Event | C4: Frequency | D4: P(X) | E4: P(X)
A5: Early | B5: =LEFT(A5,1) -> E | C5: 100 | D5: ="P("&B5&")" -> P(E) | E5: =C5/$C$9 -> 0.1
A6: On Time | B6: =LEFT(A6,1) -> O | C6: 800 | D6: ="P("&B6&")" -> P(O) | E6: =C6/$C$9 -> 0.8
A7: Late | B7: =LEFT(A7,1) -> L | C7: 75 | D7: ="P("&B7&")" -> P(L) | E7: =C7/$C$9 -> 0.075
A8: Canceled | B8: =LEFT(A8,1) -> C | C8: 25 | D8: ="P("&B8&")" -> P(C) | E8: =C8/$C$9 -> 0.025
C9: =SUM(C5:C8) -> 1000 | E9: =SUM(E5:E8) -> 1
A12: =CONCATENATE("P(",A5," or ",A6,")") -> P(Early or On Time) | B12: = | C12: =CONCATENATE("P(",B5," or ",B6,")") -> P(E or O) | D12: = | E12: =E5 -> 0.1 | F12: + | G12: =E6 -> 0.8 | H12: = | I12: =E5+E6 -> 0.9
A13: =CONCATENATE("P(Not ",A8,")") -> P(Not Canceled) | B13: = | C13: =CONCATENATE("P(Not ",B8,")") -> P(Not C) | D13: = | E13: =+E9 -> 1 | F13: - | G13: =E8 -> 0.025 | H13: = | I13: =1-E8 -> 0.975
A14: =CONCATENATE("P(",A5," or ",A7,")") -> P(Early or Late) | B14: = | C14: =CONCATENATE("P(",B5," or ",B7,")") -> P(E or L) | D14: = | E14: =E5 -> 0.1 | F14: + | G14: =E7 -> 0.075 | H14: = | I14: =E5+E7 -> 0.175
A17: Travel survey of people who visit Seattle
A18: Visit Space Needle | B18: SN | C18: ="P("&B18&")" -> P(SN) | D18: 0.45
A19: Visit Pike's Place Market | B19: PP | C19: ="P("&B19&")" -> P(PP) | D19: 0.65
A20: Visit Both | B20: SN & PP | C20: ="P("&B20&")" -> P(SN & PP) | D20: 0.25
A21: ="P("&B18&" OR "&B19&") "&CHAR(10)&"= "&C18&" + "&C19&" - "&C20 -> P(SN OR PP) = P(SN) + P(PP) - P(SN & PP) | B21: =D18+D19-D20 -> 0.85
A22: or
A23: P(visit at least 1)

Sheet CP
A1: Conditional Probability
A2: Cards in Deck (Population) | B2: 52
A3: Queens in deck (total # successes) | B3: 4
A4: # of cards to pull (Sample Size) = | B4: 1
A5: # of Queens (# of successes) = | B5: 1
A6: P(Pull 1 Queen w/out Replcement) = | C6: =B3&"/"&B2&" = "&TEXT(B3/B2,"?/??") -> 4/52 = 1/13 | D6: P(Q1)
A7: How total many Cards Left? | B7: 51
A8: How Queens Left? | B8: 3
A9: P(Q2 | Q1) | C9: =B8&"/"&B7&" = "&TEXT(B8/B7,"?/??") -> 3/51 = 1/17
A10: How total many Cards Left? | B10: 50
A11: How Queens Left? | B11: 2
A12: P(Q3 | Q2 | Q1) | C12: =B11&"/"&B10&" = "&TEXT(B11/B10,"?/??") -> 2/50 = 1/25

Sheet CP(an)
A1: Conditional Probability
A2: Cards in Deck (Population) | B2: 52
A3: Queens in deck (total # successes) | B3: 4
A4: # of cards to pull (Sample Size) = | B4: 1
A5: # of Queens (# of successes) = | B5: 1
A6: P(Pull 1 Queen w/out Replcement) = | B6: =B3/B2 -> 0.07692307692 | C6: =B3&"/"&B2&" = "&TEXT(B3/B2,"?/??") -> 4/52 = 1/13 | D6: P(Q1)
A7: How total many Cards Left? | B7: 51
A8: How Queens Left? | B8: 3
A9: P(Q2 | Q1) | B9: =B8/B7 -> 0.05882352941 | C9: =B8&"/"&B7&" = "&TEXT(B8/B7,"?/??") -> 3/51 = 1/17
A10: How total many Cards Left? | B10: 50
A11: How Queens Left? | B11: 2
A12: P(Q3 | Q2 | Q1) | B12: =B11/B10 -> 0.04 | C12: =B11&"/"&B10&" = "&TEXT(B11/B10,"?/??") -> 2/50 = 1/25

Sheet M
A1: Multiplication Law for Probability = P(A and B) = P(B) * P(A | B) or =P(A and B) = P(A) * P(B | A) if events are independent, then: =P(A and B) = P(A) * P(B)
A2: Note: Multiply = AND = ∩ = Intersection = *
A4: Cards in Deck (Population) | B4: 52
A5: Queens in deck (total # successes) | B5: 4
A6: # of cards to pull (Sample Size) = | B6: 1
A7: # of Queens (# of successes) = | B7: 1
A8: P(Pull 1 Queen w/out Replcement) = | B8: =B5/B4 -> 0.07692307692 | C8: =B5&"/"&B4&" = "&TEXT(B5/B4,"?/??") -> 4/52 = 1/13 | D8: P(Q1)
A9: How total many Cards Left? | B9: 51
A10: How Queens Left? | B10: 3
A11: P(Q2 | Q1) | B11: =B10/B9 -> 0.05882352941 | C11: =B10&"/"&B9&" = "&TEXT(B10/B9,"?/??") -> 3/51 = 1/17
A12: How total many Cards Left? | B12: 50
A13: How Queens Left? | B13: 2
A14: P(Q3 | Q2 | Q1) | B14: =B13/B12 -> 0.04 | C14: =B13&"/"&B12&" = "&TEXT(B13/B12,"?/??") -> 2/50 = 1/25
A16: P(Pull 3 striaght Queens) | C16: =B5&"/"&B4&" * "&B10&"/"&B9&" * "&B13&"/"&B12 -> 4/52 * 3/51 * 2/50 | F16: =4/52 * 3/51 * 2/50 -> 0.0001809954751
A17: or
A18: Use HYPGEOMDIST function to calculate Conditional Probabilities
A19: Cards in Deck (Population) | B19: 52 | D19: number_pop = population size
A20: Queens in deck (total # successes) | B20: 4 | D20: population_s = # successes in population
A21: # of cards to pull (Sample Size) = | B21: 3 | D21: number_sample = sample size
A22: # of Queens (# of successes) = | B22: 3 | D22: sample_s = # of successes in sample
A23: P(Pull 3 striaght Queens)
A24: Excel 2010 function: | C24: =IF(OR(B23="",B24=""),"",B24=B23) ->  | D24: Excel 2007 and Excel 2010 function results the same?
A26: Example 2:
A27: P(Google stock goes up next year) = | B27: G | C27: ="P("&B27&")" -> P(G) | D27: 0.2
A28: P(WFMI stock goes up next year) = | B28: W | C28: ="P("&B28&")" -> P(W) | D28: 0.35
A29: ="P("&B27&" and "&B28&")" -> P(G and W)

Sheet M(an)
A1: Multiplication Law for Probability = P(A and B) = P(B) * P(A | B) or =P(A and B) = P(A) * P(B | A) if events are independent, then: =P(A and B) = P(A) * P(B)
A2: Note: Multiply = AND = ∩ = Intersection = *
A4: Cards in Deck (Population) | B4: 52
A5: Queens in deck (total # successes) | B5: 4
A6: # of cards to pull (Sample Size) = | B6: 1
A7: # of Queens (# of successes) = | B7: 1
A8: P(Pull 1 Queen w/out Replcement) = | B8: =B5/B4 -> 0.07692307692 | C8: =B5&"/"&B4&" = "&TEXT(B5/B4,"?/??") -> 4/52 = 1/13 | D8: P(Q1)
A9: How total many Cards Left? | B9: 51
A10: How Queens Left? | B10: 3
A11: P(Q2 | Q1) | B11: =B10/B9 -> 0.05882352941 | C11: =B10&"/"&B9&" = "&TEXT(B10/B9,"?/??") -> 3/51 = 1/17
A12: How total many Cards Left? | B12: 50
A13: How Queens Left? | B13: 2
A14: P(Q3 | Q2 | Q1) | B14: =B13/B12 -> 0.04 | C14: =B13&"/"&B12&" = "&TEXT(B13/B12,"?/??") -> 2/50 = 1/25
A16: P(Pull 3 striaght Queens) | B16: =B8*B11*B14 -> 0.0001809954751 | C16: =B5&"/"&B4&" * "&B10&"/"&B9&" * "&B13&"/"&B12 -> 4/52 * 3/51 * 2/50
A17: or
A18: Use HYPGEOMDIST function to calculate Conditional Probabilities
A19: Cards in Deck (Population) | B19: 52 | D19: number_pop = population size
A20: Queens in deck (total # successes) | B20: 4 | D20: population_s = # successes in population
A21: # of cards to pull (Sample Size) = | B21: 3 | D21: number_sample = sample size
A22: # of Queens (# of successes) = | B22: 3 | D22: sample_s = # of successes in sample
A23: P(Pull 3 striaght Queens) | B23: =HYPGEOMDIST(B22,B21,B20,B19) -> 0.0001809954751
A24: Excel 2010 function: | B24: =_xlfn.HYPGEOM.DIST(B22,B21,B20,B19,0) -> 0.0001809954751 | C24: =IF(OR(B23="",B24=""),"",B24=B23) -> TRUE | D24: Excel 2007 and Excel 2010 function results the same?
A26: Example 2:
A27: P(Google stock goes up next year) = | B27: G | C27: ="P("&B27&")" -> P(G) | D27: 0.2
A28: P(WFMI stock goes up next year) = | B28: W | C28: ="P("&B28&")" -> P(W) | D28: 0.35
A29: ="P("&B27&" and "&B28&")" -> P(G and W) | B29: =D27*D28 -> 0.07

Sheet HYPGEOM.DIST
A1: Hypergeometric distribution: Discrete Probability Distribution
A2: Excel 2007 and before: HYPGEOMDIST. Excel 2010: HYPGEOM.DIST
A3: HYPGEOM.DIST is used in sampling without replacement from a finite population to calculate Conditional Probability.
A4: ="What is the probability of pulling "&C11&" woman's name from a hat in "&C10&" tries when the hat has "&C7&" women's names and "&C8&" men's names?" -> What is the probability of pulling 1 woman's name from a hat in 3 tries when the hat has 6 women's names and 4 men's names?
A5: HYPGEOM.DIST arguments | B5: Items | C5: Number
A6: Number_pop | B6: # in Population = Total In Class | C6: 10 | E6: Notation
A7: Population_s | B7: Women | C7: 6 | D7: # Successes in Pop | E7: W
B8: Men | C8: =C6-C7 -> 4 | E8: M
B9: Success = | C9: =B7 -> Women
A10: Number_sample | B10: Sample Size | C10: 3
A11: Sample_s | B11: ="Number Success in Sample (we pull "&C11&" in "&C10&" tries)" -> Number Success in Sample (we pull 1 in 3 tries) | C11: 1 | E11: Check
A12: cumulative | B12: returns the probability mass function = 0 | D12: 0 | F12: P(1 women's Name in 3 Tries)
A13: cumulative | B13: returns the cumulative distribution function = 1 | D13: 1 | F13: P(Less Than or Eqaul to 1 women's Name in 3 Tries)
A15: ="Experiment: pull "&C10&" names from a population of "&C6&" names" -> Experiment: pull 3 names from a population of 10 names
A16: ="What is probability that you will get "&C11&" Women's name?" -> What is probability that you will get 1 Women's name? | D16: 3 straight names
A17: All Sample Points:
A18: Trial 1 | B18: Trial 2 | C18: Trial 3 | D18: P(Sample Point)
A19: M | B19: M | C19: M
A20: W | B20: M | C20: M
A21: M | B21: W | C21: M
A22: M | B22: M | C22: W
A23: W | B23: W | C23: M
A24: W | B24: M | C24: W
A25: M | B25: W | C25: W
A26: W | B26: W | C26: W
C27: Total | D27: =SUM(D19:D26) -> 0

Sheet HYPGEOM.DIST (an)
A1: Hypergeometric distribution: Discrete Probability Distribution
A2: Excel 2007 and before: HYPGEOMDIST. Excel 2010: HYPGEOM.DIST
A3: HYPGEOM.DIST is used in sampling without replacement from a finite population to calculate Conditional Probability.
A4: ="What is the probability of pulling "&C11&" woman's name from a hat in "&C10&" tries when the hat has "&C7&" women's names and "&C8&" men's names?" -> What is the probability of pulling 1 woman's name from a hat in 3 tries when the hat has 6 women's names and 4 men's names?
A5: HYPGEOM.DIST arguments | B5: Items | C5: Number
A6: Number_pop | B6: # in Population = Total In Class | C6: 10 | E6: Notation
A7: Population_s | B7: Women | C7: 6 | D7: # Successes in Pop | E7: W
B8: Men | C8: =C6-C7 -> 4 | E8: M
B9: Success = | C9: =B7 -> Women
A10: Number_sample | B10: Sample Size | C10: 3
A11: Sample_s | B11: ="Number Success in Sample (we pull "&C11&" in "&C10&" tries)" -> Number Success in Sample (we pull 1 in 3 tries) | C11: 1 | E11: Check
A12: cumulative | B12: returns the probability mass function = 0 | C12: =_xlfn.HYPGEOM.DIST(C11,C10,C7,C6,0) -> 0.3 | D12: 0 | E12: =SUM(D20:D22) -> 0.3 | F12: P(1 women's Name in 3 Tries)
A13: cumulative | B13: returns the cumulative distribution function = 1 | C13: =_xlfn.HYPGEOM.DIST(C11,C10,C7,C6,1) -> 0.3333333333 | D13: 1 | E13: =SUM(D19:D22) -> 0.3333333333 | F13: P(Less Than or Eqaul to 1 women's Name in 3 Tries)
A15: ="Experiment: pull "&C10&" names from a population of "&C6&" names" -> Experiment: pull 3 names from a population of 10 names
A16: ="What is probability that you will get "&C11&" Women's name?" -> What is probability that you will get 1 Women's name? | D16: 3 straight names | E16: =6/10*5/9*4/8 -> 0.1666666667
A17: All Sample Points:
A18: Trial 1 | B18: Trial 2 | C18: Trial 3 | D18: P(Sample Point)
A19: M | B19: M | C19: M | D19: =4/10*3/9*2/8 -> 0.03333333333
A20: W | B20: M | C20: M | D20: =6/10*4/9*3/8 -> 0.1
A21: M | B21: W | C21: M | D21: =4/10*6/9*3/8 -> 0.1
A22: M | B22: M | C22: W | D22: =4/10*3/9*6/8 -> 0.1
A23: W | B23: W | C23: M | D23: =6/10*5/9*4/8 -> 0.1666666667
A24: W | B24: M | C24: W | D24: =6/10*4/9*5/8 -> 0.1666666667
A25: M | B25: W | C25: W | D25: =4/10*6/9*5/8 -> 0.1666666667
A26: W | B26: W | C26: W | D26: =6/10*5/9*4/8 -> 0.1666666667
C27: Total | D27: =SUM(D19:D26) -> 1

Sheet CT
A1: Executives were asked whether or not they would remain with the company if they received a better offer from a different company
B2: Length of Service
A3: Loyalty | B3: Less than 1 year | C3: 1-5 years | D3: 6-10 years | E3: More than 10 years | F3: Total
A4: Would remain | B4: 10 | C4: 30 | D4: 5 | E4: 75 | F4: =SUM(B4:E4) -> 120
A5: Would not remain | B5: 25 | C5: 15 | D5: 10 | E5: 30 | F5: =SUM(B5:E5) -> 80
B6: =SUM(B4:B5) -> 35 | C6: =SUM(C4:C5) -> 45 | D6: =SUM(D4:D5) -> 15 | E6: =SUM(E4:E5) -> 105 | F6: =SUM(F4:F5) -> 200
A8: Joint Probability Table
B9: Length of Service
A10: Loyalty | B10: Less than 1 year | C10: 1-5 years | D10: 6-10 years | E10: More than 10 years | F10: Total
A11: Would remain
A12: Would not remain
A15: =CONCATENATE("P(","Randomly selecting executive who ",A4," AND who has ",CLEAN(E3),") =") -> P(Randomly selecting executive who Would remain AND who has More than 10 years) = | E15: Joint
A16: =CONCATENATE("P(","Randomly selecting executive who ",A5," AND who has ",CLEAN(E3),") =") -> P(Randomly selecting executive who Would not remain AND who has More than 10 years) = | C16: Joint
A17: ="P(Randomly selecting executive who "&A5&" OR "&CLEAN(B3)&") =" -> P(Randomly selecting executive who Would not remain OR Less than 1 year) = | D17: Or | E17: =(F5+B6-B5)/F6 -> 0.45
A18: ="P(Randomly selecting executive who "&A5&" GIVEN THAT "&CLEAN(C3)&") =" -> P(Randomly selecting executive who Would not remain GIVEN THAT 1-5 years) = | D18: Conditional | E18: <<< | F18: AND/ Marginal
A19: ="P(Randomly selecting executive who has "&C3&") =" -> P(Randomly selecting executive who has 1-5 years) = | C19: Marginal
A20: P(Randomly selecting executive who has at least 6 years experience) | C20: Adding Marginal
A21: ="P(Randomly selecting executive who "&A5&" OR "&CLEAN(C3)&") =" -> P(Randomly selecting executive who Would not remain OR 1-5 years) = | D21: Or

Sheet CT(an)
A1: Executives were asked whether or not they would remain with the company if they received a better offer from a different company
B2: Length of Service
A3: Loyalty | B3: Less than 1 year | C3: 1-5 years | D3: 6-10 years | E3: More than 10 years | F3: Total
A4: Would remain | B4: 10 | C4: 30 | D4: 5 | E4: 75 | F4: =SUM(B4:E4) -> 120
A5: Would not remain | B5: 25 | C5: 15 | D5: 10 | E5: 30 | F5: =SUM(B5:E5) -> 80
B6: =SUM(B4:B5) -> 35 | C6: =SUM(C4:C5) -> 45 | D6: =SUM(D4:D5) -> 15 | E6: =SUM(E4:E5) -> 105 | F6: =SUM(F4:F5) -> 200
A8: Joint Probability Table
B9: Length of Service
A10: Loyalty | B10: Less than 1 year | C10: 1-5 years | D10: 6-10 years | E10: More than 10 years | F10: Total
A11: Would remain | B11: =B4/$F$6 -> 0.05 | C11: 0.15 | D11: 0.025 | E11: 0.375 | F11: 0.6
A12: Would not remain | B12: 0.125 | C12: 0.075 | D12: 0.05 | E12: 0.15 | F12: 0.4
B13: 0.175 | C13: 0.225 | D13: 0.075 | E13: 0.525 | F13: 1
A15: =CONCATENATE("P(","Randomly selecting executive who ",A4," AND who has ",CLEAN(E3),") =") -> P(Randomly selecting executive who Would remain AND who has More than 10 years) = | B15: =F4/F6*E4/F4 -> 0.375 | C15: =E4/F6 -> 0.375 | D15: =E11 -> 0.375 | E15: Joint
A16: =CONCATENATE("P(","Randomly selecting executive who ",A5," AND who has ",CLEAN(E3),") =") -> P(Randomly selecting executive who Would not remain AND who has More than 10 years) = | B16: =E5/F6 -> 0.15 | C16: Joint
A17: ="P(Randomly selecting executive who "&A5&" OR "&CLEAN(B3)&") =" -> P(Randomly selecting executive who Would not remain OR Less than 1 year) = | B17: =F5/F6+B6/F6-B5/F6 -> 0.45 | C17: =F12+B13-B12 -> 0.45 | D17: Or | E17: =(F5+B6-B5)/F6 -> 0.45
A18: ="P(Randomly selecting executive who "&A5&" GIVEN THAT "&CLEAN(C3)&") =" -> P(Randomly selecting executive who Would not remain GIVEN THAT 1-5 years) = | B18: =C5/C6 -> 0.3333333333 | C18: =C12/C13 -> 0.3333333333 | D18: Conditional | E18: <<< | F18: AND/ Marginal
A19: ="P(Randomly selecting executive who has "&C3&") =" -> P(Randomly selecting executive who has 1-5 years) = | B19: =C6/F6 -> 0.225 | C19: Marginal
A20: P(Randomly selecting executive who has at least 6 years experience) | B20: =SUM(D6:E6)/F6 -> 0.6 | C20: Adding Marginal
A21: ="P(Randomly selecting executive who "&A5&" OR "&CLEAN(C3)&") =" -> P(Randomly selecting executive who Would not remain OR 1-5 years) = | B21: =F5/F6+C6/F6-C5/F6 -> 0.55 | C21: =(F5+C6-C5)/F6 -> 0.55 | D21: =F12+C13-C12 -> 0.55 | E21: Or

Sheet RawData
A1: The question is: How do you rate your instructor? Then, let's find out how ratings change depending on how long they have been tenured!
A2: Class Rating | B2: Tenured
A3: OK | B3: 1 up to 5 Years
A4: Good | B4: 5 up to 10 Years
A5: Excellent | B5: 10 up to 20 Years
D6: Count | E6: =A2 -> Class Rating | F6: =B2 -> Tenured
D7: 1 | E7: OK | F7: 1 up to 5 Years
D8: 2 | E8: OK | F8: 1 up to 5 Years
D9: 3 | E9: OK | F9: 1 up to 5 Years
D10: 4 | E10: OK | F10: 1 up to 5 Years
D11: 5 | E11: OK | F11: 1 up to 5 Years
D12: 6 | E12: OK | F12: 5 up to 10 Years
D13: 7 | E13: OK | F13: 5 up to 10 Years
D14: 8 | E14: OK | F14: 5 up to 10 Years
D15: 9 | E15: OK | F15: 5 up to 10 Years
D16: 10 | E16: OK | F16: 5 up to 10 Years
D17: 11 | E17: OK | F17: 10 up to 20 Years
D18: 12 | E18: OK | F18: 10 up to 20 Years
D19: 13 | E19: OK | F19: 10 up to 20 Years
D20: 14 | E20: OK | F20: 10 up to 20 Years
D21: 15 | E21: OK | F21: 10 up to 20 Years
D22: 1 | E22: Good | F22: 1 up to 5 Years
D23: 2 | E23: Good | F23: 1 up to 5 Years
D24: 3 | E24: Good | F24: 1 up to 5 Years
D25: 4 | E25: Good | F25: 1 up to 5 Years
D26: 5 | E26: Good | F26: 1 up to 5 Years
D27: 6 | E27: Good | F27: 1 up to 5 Years
D28: 7 | E28: Good | F28: 1 up to 5 Years
D29: 8 | E29: Good | F29: 5 up to 10 Years
D30: 9 | E30: Good | F30: 5 up to 10 Years
D31: 10 | E31: Good | F31: 5 up to 10 Years
D32: 11 | E32: Good | F32: 5 up to 10 Years
D33: 12 | E33: Good | F33: 5 up to 10 Years
D34: 13 | E34: Good | F34: 10 up to 20 Years
D35: 14 | E35: Good | F35: 10 up to 20 Years
D36: 1 | E36: Excellent | F36: 1 up to 5 Years
D37: 2 | E37: Excellent | F37: 1 up to 5 Years
D38: 3 | E38: Excellent | F38: 1 up to 5 Years
D39: 4 | E39: Excellent | F39: 1 up to 5 Years
D40: 5 | E40: Excellent | F40: 1 up to 5 Years
D41: 6 | E41: Excellent | F41: 1 up to 5 Years
D42: 7 | E42: Excellent | F42: 1 up to 5 Years
D43: 8 | E43: Excellent | F43: 1 up to 5 Years
D44: 9 | E44: Excellent | F44: 5 up to 10 Years
D45: 10 | E45: Excellent | F45: 5 up to 10 Years
D46: 11 | E46: Excellent | F46: 5 up to 10 Years
D47: 12 | E47: Excellent | F47: 5 up to 10 Years
D48: 13 | E48: Excellent | F48: 5 up to 10 Years
D49: 14 | E49: Excellent | F49: 10 up to 20 Years
D50: 15 | E50: Excellent | F50: 10 up to 20 Years
D51: 16 | E51: Excellent | F51: 10 up to 20 Years

Sheet PT(an)
A3: Count of Class Rating | B3: Tenured
A4: Class Rating | B4: 1 up to 5 Years | C4: 5 up to 10 Years | D4: 10 up to 20 Years | E4: Grand Total
A5: Excellent | B5: 8 | C5: 5 | D5: 3 | E5: 16
A6: Good | B6: 7 | C6: 5 | D6: 2 | E6: 14
A7: OK | B7: 5 | C7: 5 | D7: 5 | E7: 15 | G7: P(Excellent | 5 up to 10 years) | H7: =C5/C8 -> 0.3333333333
A8: Grand Total | B8: 20 | C8: 15 | D8: 10 | E8: 45 | H8: =C5/C8 -> 0.3333333333
A11: Count of Class Rating | B11: Tenured
A12: Class Rating | B12: 1 up to 5 Years | C12: 5 up to 10 Years | D12: 10 up to 20 Years | E12: Grand Total | G12: Joint and Marginal Probabilities
A13: Excellent | B13: 0.1777777778 | C13: 0.1111111111 | D13: 0.06666666667 | E13: 0.3555555556
A14: Good | B14: 0.1555555556 | C14: 0.1111111111 | D14: 0.04444444444 | E14: 0.3111111111
A15: OK | B15: 0.1111111111 | C15: 0.1111111111 | D15: 0.1111111111 | E15: 0.3333333333
A16: Grand Total | B16: 0.4444444444 | C16: 0.3333333333 | D16: 0.2222222222 | E16: 1
A19: Count of Class Rating | B19: Tenured
A20: Class Rating | B20: 1 up to 5 Years | C20: 5 up to 10 Years | D20: 10 up to 20 Years | E20: Grand Total | G20: Conditional Probabilities for Tenured Category
A21: Excellent | B21: 0.4 | C21: 0.3333333333 | D21: 0.3 | E21: 0.3555555556
A22: Good | B22: 0.35 | C22: 0.3333333333 | D22: 0.2 | E22: 0.3111111111
A23: OK | B23: 0.25 | C23: 0.3333333333 | D23: 0.5 | E23: 0.3333333333
A24: Grand Total | B24: 1 | C24: 1 | D24: 1 | E24: 1
A27: Count of Class Rating | B27: Tenured | G27: P(Excellent | 10 up to 20 years) | H27: =3/16 -> 0.1875
A28: Class Rating | B28: 1 up to 5 Years | C28: 5 up to 10 Years | D28: 10 up to 20 Years | E28: Grand Total
A29: Excellent | B29: 0.5 | C29: 0.3125 | D29: 0.1875 | E29: 1
A30: Good | B30: 0.5 | C30: 0.3571428571 | D30: 0.1428571429 | E30: 1 | G30: Conditional Probabilities for Class Rating Category
A31: OK | B31: 0.3333333333 | C31: 0.3333333333 | D31: 0.3333333333 | E31: 1
A32: Grand Total | B32: 0.4444444444 | C32: 0.3333333333 | D32: 0.2222222222 | E32: 1

Sheet B
A1: =ROW()&")" -> 1) | B1: Array: Bayes' Theorem
A2: =ROW()&")" -> 2) | B2: SUMPRODUCT function
B4: Event | C4: Prior Probability | D4: P(x) | E4: Conditional Probability | F4: Joint Probability | G4: P(x) | H4: Posterior Probability
B5: Leave garage open | C5: 0.25 | D5: Stuff Stolen, Given Leave garage open = P(SS | GO) | E5: 0.05 | G5: P(GO | SS)
B6: Not Leave garage open | C6: 0.75 | D6: Stuff Stolen, Given Not Leave garage open = P(SS | GNO) | E6: 0.01 | G6: P(GNO | SS)
E7: P(Stuff Stolen)
B8: Posterior Probability
B9: Doors open given Stuff Stolen Stolen | C9: P(GO | SS) | F9: SS = Stuff Stolen
F10: GO = Garage Open
F11: GNO = Garage Not Open
F13: P(GO AND SS)
F14: P(GNO AND SS)

Sheet B(1)an
A1: =ROW()&")" -> 1) | B1: Array: Bayes' Theorem
A2: =ROW()&")" -> 2) | B2: SUMPRODUCT function
B4: Event | C4: Prior Probability | D4: P(x) | E4: Conditional Probability | F4: Joint Probability | G4: P(x) | H4: Posterior Probability
B5: Leave garage open | C5: 0.25 | D5: Stuff Stolen, Given Leave garage open = P(SS | GO) | E5: 0.05 | F5: =C5*E5 -> 0.0125 | G5: P(GO | SS) | H5: =F5/$F$7 -> 0.625
B6: Not Leave garage open | C6: 0.75 | D6: Stuff Stolen, Given Not Leave garage open = P(SS | GNO) | E6: 0.01 | F6: =C6*E6 -> 0.0075 | G6: P(GNO | SS) | H6: =F6/$F$7 -> 0.375
E7: P(Stuff Stolen) | F7: =SUM(F5:F6) -> 0.02
B8: Posterior Probability | F8: =SUMPRODUCT(C5:C6,E5:E6) -> 0.02
B9: Doors open given Stuff Stolen Stolen | C9: P(GO | SS) | D9: =(C5*E5)/SUMPRODUCT(C5:C6,E5:E6) -> 0.625 | F9: SS = Stuff Stolen
F10: GO = Garage Open
F11: GNO = Garage Not Open
F13: P(GO AND SS)
F14: P(GNO AND SS)
